Cogmind - Beta 15 @@@ ROGUE MODE // 2025.05.13 @ 21:15:26 Player: Zyalin Result: Destroyed by KJ-USP(R) with Subdweller Machine Gun Performance ------------- Evolutions (0) 0 Regions Visited (2) 400 Robots Destroyed (12) 60 Value Destroyed (443) 443 Prototype IDs (0) 0 Alien Tech Used (0) 0 Bonus (0) 0 TOTAL SCORE: 903 Bonus ------- None Cogmind --------- Core Integrity 0/250 Matter 285/300 Energy 91/100 System Corruption 0% Temperature Cool (0) Movement Core (50) Location -10/Subcaves Parts ------- > --- POWER (1) -------- (None) > --- PROPULSION (2) --- (None) > --- UTILITY (2) ------ (None) > --- WEAPON (2) ------- Small Laser Assault Rifle > --- INVENTORY (5) ---- Medium Storage Unit Subdweller Optics Subdweller Laser Rocket Launcher Mace Peak State ------------ > --- POWER ------------ Subdweller Power Source > --- PROPULSION ------- Carbon-fiber Leg Myomer Leg > --- UTILITY ---------- Scrap Shield > --- WEAPON ----------- Small Laser Light Assault Rifle > --- INVENTORY -------- Medium Storage Unit Subdweller Optics Subdweller Laser Rocket Launcher Mace [Rating: 18] Favorites ----------- Power Ion Engine Engine Ion Engine Propulsion Improved Treads Treads Improved Treads Leg Myomer Leg Utility Scrap Shield Storage Small Storage Unit Protection Scrap Shield Weapon Small Laser Energy Gun Small Laser Ballistic Gun Light Assault Rifle Launcher Rocket Launcher Impact Weapon Mace Build | -11 -10 -10 ------- Run | Yrd Mat Sub Slots Evolved . | . . . Power . | . . . Propulsion . | . . . Utility . | . . . Weapon . | . . . Parts Attached 18 | 6 4 8 Power 2 | 1 . 1 Engine 2 | 1 . 1 Core . | . . . Reactor . | . . . Propulsion 6 | 2 2 2 Treads 4 | 2 2 . Leg 2 | . . 2 Wheel . | . . . Hover . | . . . Flight . | . . . Utility 5 | 1 2 2 Device . | . . . Storage 2 | 1 1 . Processor . | . . . Hackware . | . . . Protection 3 | . 1 2 Artifact . | . . . Weapon 5 | 2 . 3 Energy Gun 1 | 1 . . Energy Cannon . | . . . Ballistic Gun 2 | 1 . 1 Ballistic Cannon . | . . . Launcher 1 | . . 1 Special Weapon . | . . . Impact Weapon 1 | . . 1 Slashing Weapon . | . . . Piercing Weapon . | . . . Special Melee Weapon . | . . . Unidentified Prototypes . | . . . Parts Lost 6 | . . 6 Power 2 | . . 2 Propulsion 2 | . . 2 Utility 2 | . . 2 Weapon . | . . . Highest Loss Streak 4 | . . 4 To Critical Strikes . | . . . Average Backups 4 | . 4 4 Power . | . 1 . Propulsion . | . . . Utility 1 | . . 1 Weapon 2 | . 1 2 Tool/Special . | . . . Unused Backups 6 | . . 6 Power 1 | . . 1 Propulsion . | . . . Utility 2 | . . 2 Weapon 3 | . . 3 Tool/Special . | . . . Average Slot Usage (%) 88 | . 95 84 Engine 13 | . 14 12 Treads 21 | . 28 17 Leg 6 | . . 10 Storage 6 | . 14 2 Protection 11 | . 9 12 Energy Gun 13 | . 14 12 Ballistic Gun 14 | . 14 14 Peak Build Rating 18 | 6 10 18 Average Rating 10 | 4 7 12 On Entrance 5 | . 6 10 Naked Turns . | . . . Heaviest Build 28 | 12 20 28 Greatest Support 46 | 40 46 46 Greatest Overweight (x) 1 | . . 1 Average Overweight (x) . | . . . Largest Inventory Capacity 10 | 8 10 10 Average Capacity 6 | 6 8 5 Most Carried 10 | 2 8 10 Average Carried 4 | . 4 5 Final Capacity 10 | 8 10 5 Final Carried 8 | 2 8 5 Class Distribution -------------------- 80% | Mutant 19% | Scavenger-Mutant Dominant Class ---------------- Mutant | -10/Materials Mutant | -10/Subcaves Resources | -11 -10 -10 ----------- Run | Yrd Mat Sub Matter Collected 502 | 154 149 199 Remotely . | . . . Salvage Created 312 | . 149 163 Parts 14 | . 8 6 Haulers Intercepted 1 | . 1 . Recyclers Shooed . | . . . Parts Field Recycled . | . . . Retrieved Matter . | . . . Parts Self-Destructed 5 | . . 5 Prevented . | . . . Kills | -11 -10 -10 ------- Run | Yrd Mat Sub Combat Hostiles Destroyed 11 | . 2 9 Guns 4 | . 2 2 AOE 7 | . . 7 Classes Destroyed 3 | . 2 1 Hauler 1 | . 1 . Grunt 2 | . 2 . Subdweller 9 | . . 9 Best Kill Streak 8 | . 2 8 Combat Bots Only 8 | . 2 8 Max Kills in Single Turn 3 | . 1 3 Gunslinging . | . . . Exploded 3 | . . 3 Melee . | . . . Uniques/NPCs Destroyed . | . . . Combat | -11 -10 -10 -------- Run | Yrd Mat Sub Hostile Shots Fired 56 | . 7 49 Missed 8 | . 2 6 Hits 48 | . 5 43 Projectile 48 | . 5 43 Damage Taken 1277 | . 65 1212 Core 257 | . 18 239 Absorbed by Shields . | . . . Core Remaining (%) 100 | 100 . . Volleys Fired 33 | . 7 26 Largest 2 | . 2 2 Hottest 60 | . 60 60 Shots Fired 55 | . 14 41 Gun 45 | . 14 31 Cannon . | . . . Launcher 10 | . . 10 Special . | . . . Kinetic 23 | . 7 16 Thermal 22 | . 7 15 Explosive 10 | . . 10 Electromagnetic . | . . . Robot Hit Streak 33 | . 9 33 Robot Miss Streak 4 | . 1 4 Penetration Max . | . . . Secondary Targets 1 | . 1 . Max Gunslinging Chain 1 | . 1 . Shots Hit Robots 46 | . 11 35 Core Hits 24 | . 7 17 Critical Kills . | . . . Critical Parts Destroyed . | . . . Critical Strikes . | . . . Melee Attacks 2 | . . 2 Impact 2 | . . 2 Slashing . | . . . Piercing . | . . . Sneak Attacks . | . . . Combat Hostiles . | . . . Follow-up Attacks . | . . . Damage Inflicted 1178 | . 112 1066 Guns 262 | . 112 150 Cannons . | . . . Explosions 916 | . . 916 Melee . | . . . Ramming . | . . . Kinetic 106 | . 35 71 Thermal 156 | . 77 79 Explosive 916 | . . 916 Electromagnetic . | . . . Impact . | . . . Slashing . | . . . Piercing . | . . . Highest Corruption . | . . . Average Corruption . | . . . Corruption Purged . | . . . Corruption Blocked . | . . . Overload Shots . | . . . Overflow Damage . | . . . Projectiles . | . . . Explosions . | . . . Melee . | . . . Knockbacks . | . . . Impact . | . . . Kinetic . | . . . Secondary . | . . . Self-Inflicted Damage 221 | . . 221 Shots 7 | . . 7 Rammed . | . . . Targets Rammed . | . . . Kicked . | . . . Crushed . | . . . Highest Temperature 89 | . 89 . Average Temperature 39 | . 39 . Received Heat Transfer 207 | . 36 171 Siege Activations . | . . . Martial Activations . | . . . Shielding Activations . | . . . Robots Disrupted . | . . . Combat Hostiles . | . . . Robots Corrupted . | . . . Combat Hostiles . | . . . Parts Fried . | . . . Impact Corruptions . | . . . Robots Melted . | . . . Combat Hostiles . | . . . Parts Melted . | . . . Heat Transferred 350 | . 175 175 Parts Sabotaged . | . . . Parts Stolen . | . . . Parts Stripped . | . . . Power Chain Reactions . | . . . Alert | -11 -10 -10 ------- Run | Yrd Mat Sub Maximum Alert Level . | . . . Low Security (%) 100 | 100 100 . Level 1 . | . . . Level 2 . | . . . Level 3 . | . . . Level 4 . | . . . Level 5 . | . . . High Security . | . . . Max Security . | . . . Peak Influence 50 | . 50 . Initial . | . . . Average 5 | . 6 . Influence Increases 65 | . 65 . Destroy 0b10 Robot/C 40 | . 40 . Destroy 0b10 Robot/NC 5 | . 5 . Destroy Leader 12 | . 12 . Successful Hack 8 | . 8 . Influence Decreases 65 | . 48 17 Entered New Map 9 | . . 9 Time Decay 56 | . 48 8 Squads Dispatched . | . . . Investigation . | . . . Extermination . | . . . Reinforcement . | . . . Assault . | . . . Garrison . | . . . Intercept . | . . . Searches Triggered . | . . . Construction Impeded . | . . . Haulers Reinforced . | . . . Active Scanning Responses . | . . . Cargo Convoy Interrupts . | . . . Stealth | -11 -10 -10 --------- Run | Yrd Mat Sub Distress Signals 1 | . 1 . Communications Jammed . | . . . Distress Signals . | . . . Times Spotted 12 | . 2 10 Peak Tracking Total 8 | . 2 8 Tactical Retreats . | . . . Traps | -11 -10 -10 ------- Run | Yrd Mat Sub Traps Triggered . | . . . Indirectly . | . . . Trap Hack Attempts . | . . . Triggered . | . . . Disarmed . | . . . Reprogrammed . | . . . Reused 1 | . . 1 Traps Extracted . | . . . Installed 1 | . . 1 Triggered . | . . . Machines | -11 -10 -10 ---------- Run | Yrd Mat Sub Machines Disabled . | . . . Max in Single Turn . | . . . Machines Repaired . | . . . Machines Dismantled . | . . . Machines Sabotaged . | . . . Overloaded Fab Kills . | . . . Hacking | -11 -10 -10 --------- Run | Yrd Mat Sub Machines Accessed 1 | . 1 . Terminals 1 | . 1 . Fabricators . | . . . Repair Stations . | . . . Recycling Units . | . . . Scanalyzers . | . . . Garrison Access . | . . . Total Hacks 4 | . 4 . Successful 2 | . 2 . Failed 2 | . 2 . Catastrophic . | . . . Database Lockouts . | . . . Manual 1 | . 1 . Terminals 4 | . 4 . Fabricators . | . . . Repair Stations . | . . . Recycling Units . | . . . Scanalyzers . | . . . Garrison Access . | . . . Terminal Hacks 1 | . 1 . Maintenance Status 1 | . 1 . Fabricator Hacks . | . . . Repair Station Hacks . | . . . Recycling Unit Hacks . | . . . Scanalyzer . | . . . Garrison Access Hacks . | . . . Unauthorized Hacks 1 | . 1 . Terminals 1 | . 1 . Botnet 1 | . 1 . Fabricators . | . . . Repair Stations . | . . . Recycling Units . | . . . Scanalyzers . | . . . Garrison Access . | . . . Data Cores Recovered . | . . . Used . | . . . Hacking Detections 1 | . 1 . Full Trace Events . | . . . Feedback Events . | . . . Feedback Blocked . | . . . Robot Schematics Acquired . | . . . Robots Built . | . . . Authchips . | . . . Time . | . . . Total Robot Build Rating . | . . . Part Schematics Acquired . | . . . Parts Built . | . . . Authchips . | . . . Time . | . . . Total Part Build Rating . | . . . Parts Repaired . | . . . Time . | . . . Parts Recycled . | . . . Recycled Matter . | . . . Retrieved Matter . | . . . Retrieved Components . | . . . Parts Scanalyzed . | . . . Part Schematics Acquired . | . . . Parts Damaged . | . . . Bothacking | -11 -10 -10 ------------ Run | Yrd Mat Sub Used RIF Installer . | . . . Robots Hacked . | . . . Non-combat . | . . . Combat . | . . . Robot Hacks Applied . | . . . Relay Couplers Released . | . . . Fabnet Peak Effective % . | . . . Robots Rewired . | . . . Allies Hacked . | . . . Hacks Repelled . | . . . Allies | -11 -10 -10 -------- Run | Yrd Mat Sub Total Allies . | . . . Largest Group . | . . . Highest-Rated Group . | . . . Highest-Rated Ally . | . . . Total Orders . | . . . Ally Attacks . | . . . Total Damage . | . . . Kills . | . . . Allies Corrupted . | . . . Allies Melted . | . . . Intel | -11 -10 -10 ------- Run | Yrd Mat Sub Active Infowar (turns) . | . . . Robot Analysis Total . | . . . Derelict Logs Recovered . | . . . Drone Launches . | . . . Drone Recoveries . | . . . Exploration | -11 -10 -10 ------------- Run | Yrd Mat Sub Turns Passed 1075 | 79 387 609 Spaces Moved 631 | 46 224 361 Core 4 | 4 . . Treads 461 | 42 224 195 Legs 166 | . . 166 Wheels . | . . . Hover . | . . . Flight . | . . . Fastest Speed 50 | 50 160 120 Average Speed 148 | 150 160 141 Slowest Speed 190 | 160 160 190 Overloaded Moves . | . . . Propulsion Burnouts . | . . . Robots Hopped . | . . . Potential Cave-ins . | . . . Cave-ins Triggered . | . . . Exploration Rate (%) 23 | 3 42 24 Regions Visited 2 Branch Regions 1 Pre-discovered Areas 1 | . . 1 Known Exits Taken . | . . . Unknown Exits Taken 2 | 1 1 . Scrap Searched 3 | . . 3 Spaces Dug . | . . . Terrain Destroyed 51 | . . 51 Melee . | . . . Projectile . | . . . AOE 51 | . . 51 Terrain Rammed . | . . . Walls Destroyed . | . . . Machines Disabled . | . . . Actions | -11 -10 -10 --------- Run | Yrd Mat Sub Total 709 | 53 239 417 Wait 6 | . . 6 Move 629 | 45 223 361 Hop . | . . . Pick Up 11 | 2 4 5 Fast Attach 11 | 6 1 4 Attach 1 | . . 1 Detach . | . . . Swap 7 | . 3 4 Drop 8 | . 1 7 Fire 33 | . 7 26 Melee 2 | . . 2 Ram . | . . . Kick . | . . . Crush . | . . . Escape Stasis . | . . . Rewire . | . . . Trap 1 | . . 1 Miscellaneous . | . . . Route ------- -11/Scrapyard -10/Materials (discovered 2 exits: [*Min] / [*Sub]) -10/Subcaves (discovered 2 exits: [*Mat] / [*Scr]) History --------- Turn | Location | Event 5 | -11/Scrapyard | Discovered new exit (range 15) 80 | -11/Scrapyard | Entered Materials 209 | -10/Materials | Met 8R-AWN 254 | -10/Materials | Discovered new exit (range 14) 328 | -10/Materials | Build established: Mutant 419 | -10/Materials | Discovered new exit (range 7) 467 | -10/Materials | Entered Subcaves 468 | -10/Subcaves | Approached by a straggling Scientist 601 | -10/Subcaves | Learned location of Zion (-6) 601 | -10/Subcaves | Met a Zionite searching for "candidates" 749 | -10/Subcaves | Ambushed by swarm of Subdwellers 753 | -10/Subcaves | Ambushed by Subdwellers from Twisted Machinery 754 | -10/Subcaves | Ambushed by Subdwellers from Twisted Machinery 779 | -10/Subcaves | Ambushed by Subdweller buried in earth 794 | -10/Subcaves | Lost 4 allies 826 | -10/Subcaves | Destroyed 8 combat bots 892 | -10/Subcaves | Scientist uncovered a shortcut to Scraptown 991 | -10/Subcaves | Discovered new exit (range 14) 1029 | -10/Subcaves | Shifting Twisted Machinery released Shrapnel Trap 1051 | -10/Subcaves | Core integrity fell below 50% 1065 | -10/Subcaves | Core integrity fell below 20% 1076 | -10/Subcaves | Destroyed by KJ-USP(R) with Subdweller Machine Gun Last Messages --------------- 00837_ Acquired Myomer Leg. 00842_ Acquired Sub. Power Source. 00846_ Dropped Lgt. Assault Rifle. 00853_ Acquired 109 matter. 00864_ The unstable cave ceiling collapses. V3-57U(c): "I think it's somewhere northeast of here" 00892_ V3-57U(c): "Hah, right again, there it is!" 00903_ V3-57U(c) exits level. 00973_ Sub. Power Source shoots sparks and powers down. 00991_ EXIT=FOUND Shrapnel Trap falls loose from the Twisted Machinery. 01044_ Scrap Shield destroyed. 01052_ Carbon-fiber Leg destroyed. 01061_ 0A-TSO(R) destroyed. 01062_ Myomer Leg destroyed. 01074_ Broken Sub. Power Source destroyed. Map ----- +----------------------------------------------------+ | ?????????????????????????????????????????????????? | | ?????????????????????????????????????????????????? | | ?????????????????????????????????????????????????? | | ?????????????????????????????????????????????????? | | ?????????????????????????????????????????????????? | | ?????????????????????????????????????????????????? | | ?????????????????????????????????????????????????? | | ?????????????????????????????????????????????????? | | ?????????????????????????????????????????????????? | | ?????????????????????????????????????????????????? | | ?????????????????????????????????????????????????? | | ?????????????????????????????????????????????????? | | ?????????????????????????????????????????????????? | | ?????????????????????????????????????????????????? | | ?????#######?????#####???????????????????????????? | | ?????# ##???## "#???????????????????????????? | | ???### ###?# #????????????????????????????? | | ???# # #?# ##???????????????????????????? | | ?### ### #???????????????????????????? | | ## #?????????????????????????????? | | # # # #?????????????????????????????? | | ###### # ######????????????????????????? | | ##??# ## ""#????????????????????????? | | ##?# ### "#??##????????????????????? | | < ## ##?## ### ##???????????????????? | | ## #???## "" @ ""#???????????????????? | | ## ##???# ## "%&" ## # #???????????????? | | # ### #???#### R"""& #???????????????? | | ## #### #??????### #????????????????? | | ?## ### ###???????#""""" #???????????? | | ?### #???????"""### ##????????????? | | ## #### #??????? ""#??#" "?????????????? | | # #??# ###??????# "" ????""?"#?????????????? | | # ##### #????????# "" #?????????????????????? | | # ### #????????### ##?????????????????????? | | ?# ## ### #???????????????????????????????????? | | ## # ##?##???????????????????????????????????? | | #??????????????????????????????????????? | | #??????????????????????????????????????? | | ###??????????????????????????????????????? | | ## ####????????????????????????????????????????? | | ######???????????????????????????????????????????? | | ?????????????????????????????????????????????????? | | ?????????????????????????????????????????????????? | | ?????????????????????????????????????????????????? | | ?????????????????????????????????????????????????? | | ?????????????????????????????????????????????????? | | ?????????????????????????????????????????????????? | | ?????????????????????????????????????????????????? | | ?????????????????????????????????????????????????? | +----------------------------------------------------+ Best States ------------- Heat Dissipation 25 Energy Generation 15 Energy Capacity 250 Matter Stores 300 Matter Capacity 300 Sight Range 16 Terrain Scan Density 10 Armor Coverage 800 Evasion (%) 55 Recoil Reduction 2 Item Schematics ----------------- None Robot Schematics ------------------ None Fabricated ------------ Nothing Repaired ---------- Nothing Alien Tech Used ----------------- None Achievements -------------- None Challenges ------------ None Game ------ Seed BackupSuspensionDiverter Manual? 0 Play Time 00:10:33 Cumulative 407.4 hours Start 2025.05.13 @ 21:06:25 End 2025.05.13 @ 21:15:26 Sessions 1 Manual Loads 0 Difficulty Rogue Special Mode None Game No. 281 Rogue 273 Adventurer 2 Explorer 6 Win Type - Total 39 Types 29/3/4/2/1/0/0/0/0/0 Lore% 67 Gallery% 73 Achievement% 87 Wizard Run 0 Options --------- Layout 2 ASCII 0 Keyboard 0 Movement Numpad Keybinds 0 Fullscreen 1 Font 48/Smallcaps Map View 50x44 Zoom Use 0% Tactical HUD 1 Map Filters NONE Filters NONE Steam 1 RUN: 1e86637a-cdad-4755-8ad7-8e5231176140